[Event "Titled Tuesday Blitz May 16 Late 2023"]
[White "Yeritsyan, Hayk"]
[Black "cryptoguru02"]
[WhiteFideId "13307320"]
[WhiteElo "2444"]
[BlackElo "2612"]
[Result "0-1"]
[Round "06"]
[TimeControl "180+2"]
[Date "2023.05.16"]
[WhiteClock "0:00:00"]
[BlackClock "0:00:45"]

1. d4 {[%clk 0:02:59]}  d5 {[%clk 0:02:59]} 2. Nf3 {[%clk 0:02:58]}  c6 {[%clk 0:02:56]} 3. Bf4 {[%clk 0:02:58]}  Qb6 {[%clk 0:02:55]} 4. Qc1 {[%clk 0:02:54]}  Bf5 {[%clk 0:02:52]} 5. e3 {[%clk 0:02:54]}  e6 {[%clk 0:02:52]} 6. c4 {[%clk 0:02:54]}  Bxb1 {[%clk 0:02:48]} 7. Qxb1 {[%clk 0:02:40]}  Bb4+ {[%clk 0:02:39]} 8. Kd1 {[%clk 0:02:08]}  dxc4 {[%clk 0:02:38]} 9. Bxc4 {[%clk 0:02:07]}  Nf6 {[%clk 0:02:37]} 10. a3 {[%clk 0:02:06]}  Be7 {[%clk 0:02:36]} 11. Ke2 {[%clk 0:02:05]}  a5 {[%clk 0:02:33]} 12. Rd1 {[%clk 0:02:04]}  Nbd7 {[%clk 0:02:26]} 13. Kf1 {[%clk 0:02:02]}  O-O {[%clk 0:02:26]} 14. Kg1 {[%clk 0:01:58]}  c5 {[%clk 0:02:25]} 15. Ne5 {[%clk 0:01:01]}  cxd4 {[%clk 0:02:18]} 16. Nxd7 {[%clk 0:01:00]}  Nxd7 {[%clk 0:02:16]} 17. Rxd4 {[%clk 0:01:00]}  Rfd8 {[%clk 0:02:13]} 18. Bg3 {[%clk 0:00:43]}  Nc5 {[%clk 0:02:04]} 19. Rxd8+ {[%clk 0:00:39]}  Rxd8 {[%clk 0:02:04]} 20. Qc2 {[%clk 0:00:39]}  Bf6 {[%clk 0:01:56]} 21. Rb1 {[%clk 0:00:18]}  h5 {[%clk 0:01:56]} 22. h4 {[%clk 0:00:17]}  a4 {[%clk 0:01:48]} 23. Bf1 {[%clk 0:00:12]}  Qc6 {[%clk 0:01:35]} 24. Rc1 {[%clk 0:00:10]}  Nb3 {[%clk 0:01:34]} 25. Qxc6 {[%clk 0:00:09]}  bxc6 {[%clk 0:01:35]} 26. Rxc6 {[%clk 0:00:10]}  Bxb2 {[%clk 0:01:35]} 27. Ra6 {[%clk 0:00:09]}  Nc5 {[%clk 0:01:24]} 28. Ra5 {[%clk 0:00:07]}  Bxa3 {[%clk 0:01:23]} 29. Kh2 {[%clk 0:00:04]}  Rc8 {[%clk 0:01:17]} 30. Bb5 {[%clk 0:00:03]}  Bb4 {[%clk 0:01:15]} 31. Ra7 {[%clk 0:00:01]}  a3 {[%clk 0:01:13]} 32. Bd6 {[%clk 0:00:02]}  g6 {[%clk 0:00:52]} 33. Bxc5 {[%clk 0:00:02]}  Bxc5 {[%clk 0:00:52]} 34. Ra6 {[%clk 0:00:01]}  Rb8 {[%clk 0:00:51]} 35. Bd3 {[%clk 0:00:01]}  Rb2 {[%clk 0:00:48]} 36. Kg3 {[%clk 0:00:00]}  Kg7 {[%clk 0:00:45]} 0-1


[Site "https://www.chess.com"]

[Event "Titled Tuesday Blitz May 16 Late 2023"]
[White "Buchenau, Frank"]
[Black "Melikyan, Gnel"]
[WhiteFideId "4604350"]
[BlackFideId "54109990"]
[WhiteElo "2157"]
[BlackElo "2138"]
[Result "1/2-1/2"]
[Round "06"]
[TimeControl "180+2"]
[Date "2023.05.16"]
[WhiteClock "0:00:18"]
[BlackClock "0:00:24"]

1. e4 {[%clk 0:03:00]}  f6 {[%clk 0:02:57]} 2. d4 {[%clk 0:03:00]}  d6 {[%clk 0:02:57]} 3. f4 {[%clk 0:02:56]}  e6 {[%clk 0:02:55]} 4. Nf3 {[%clk 0:02:56]}  Nc6 {[%clk 0:02:55]} 5. Be2 {[%clk 0:02:54]}  Be7 {[%clk 0:02:55]} 6. c4 {[%clk 0:02:54]}  Nh6 {[%clk 0:02:54]} 7. Nc3 {[%clk 0:02:54]}  Nf7 {[%clk 0:02:53]} 8. O-O {[%clk 0:02:54]}  O-O {[%clk 0:02:53]} 9. Be3 {[%clk 0:02:53]}  Re8 {[%clk 0:02:53]} 10. Qd2 {[%clk 0:02:52]}  Bf8 {[%clk 0:02:53]} 11. Rad1 {[%clk 0:02:52]}  b6 {[%clk 0:02:52]} 12. d5 {[%clk 0:02:50]}  exd5 {[%clk 0:02:51]} 13. cxd5 {[%clk 0:02:49]}  Ne7 {[%clk 0:02:49]} 14. Bb5 {[%clk 0:02:46]}  Bd7 {[%clk 0:02:49]} 15. Nd4 {[%clk 0:02:43]}  a6 {[%clk 0:02:44]} 16. Bxd7 {[%clk 0:02:42]}  Qxd7 {[%clk 0:02:44]} 17. Qd3 {[%clk 0:02:25]}  b5 {[%clk 0:02:33]} 18. Rc1 {[%clk 0:02:23]}  Rac8 {[%clk 0:02:29]} 19. Rfd1 {[%clk 0:02:08]}  c5 {[%clk 0:02:16]} 20. dxc6 {[%clk 0:02:03]}  Nxc6 {[%clk 0:02:16]} 21. Nd5 {[%clk 0:01:53]}  Nxd4 {[%clk 0:02:15]} 22. Bxd4 {[%clk 0:01:53]}  Rxc1 {[%clk 0:02:10]} 23. Rxc1 {[%clk 0:01:52]}  Rc8 {[%clk 0:02:11]} 24. Rc3 {[%clk 0:01:35]}  Rxc3 {[%clk 0:01:46]} 25. Bxc3 {[%clk 0:01:34]}  Qe6 {[%clk 0:01:39]} 26. h3 {[%clk 0:01:31]}  Nd8 {[%clk 0:01:36]} 27. f5 {[%clk 0:01:22]}  Qc8 {[%clk 0:01:29]} 28. Qg3 {[%clk 0:01:07]}  Kf7 {[%clk 0:01:24]} 29. Qf3 {[%clk 0:01:05]}  Nc6 {[%clk 0:01:20]} 30. Qh5+ {[%clk 0:01:01]}  Kg8 {[%clk 0:01:18]} 31. Bxf6 {[%clk 0:00:53]}  gxf6 {[%clk 0:01:11]} 32. Nxf6+ {[%clk 0:00:52]}  Kg7 {[%clk 0:01:11]} 33. Ne8+ {[%clk 0:00:35]}  Kh8 {[%clk 0:01:07]} 34. Qf7 {[%clk 0:00:25]}  Bh6 {[%clk 0:00:52]} 35. Nf6 {[%clk 0:00:19]}  Bg7 {[%clk 0:00:49]} 36. Ne8 {[%clk 0:00:19]}  Bh6 {[%clk 0:00:32]} 37. Nf6 {[%clk 0:00:18]}  Bg7 {[%clk 0:00:23]} 38. Ne8 {[%clk 0:00:18]}  Bh6 {[%clk 0:00:24]} 1/2-1/2


[Site "https://www.chess.com"]

[Event "Titled Tuesday Blitz May 16 Late 2023"]
[White "Denishev, Marat"]
[Black "Kev4444444444"]
[WhiteFideId "24131563"]
[WhiteElo "2311"]
[BlackElo "2159"]
[Result "1-0"]
[Round "06"]
[TimeControl "180+2"]
[Date "2023.05.16"]
[WhiteClock "0:01:04"]
[BlackClock "0:00:31"]

1. d4 {[%clk 0:03:00]}  c5 {[%clk 0:02:54]} 2. d5 {[%clk 0:03:00]}  Nf6 {[%clk 0:02:50]} 3. c4 {[%clk 0:03:00]}  e6 {[%clk 0:02:50]} 4. Nc3 {[%clk 0:03:00]}  exd5 {[%clk 0:02:49]} 5. cxd5 {[%clk 0:03:01]}  d6 {[%clk 0:02:48]} 6. e4 {[%clk 0:03:01]}  g6 {[%clk 0:02:48]} 7. Nf3 {[%clk 0:03:01]}  Bg7 {[%clk 0:02:49]} 8. h3 {[%clk 0:03:02]}  O-O {[%clk 0:02:48]} 9. Bd3 {[%clk 0:03:02]}  a6 {[%clk 0:02:45]} 10. a4 {[%clk 0:03:02]}  Re8 {[%clk 0:02:42]} 11. O-O {[%clk 0:03:02]}  Nbd7 {[%clk 0:02:31]} 12. Bf4 {[%clk 0:03:01]}  Qc7 {[%clk 0:01:55]} 13. Nd2 {[%clk 0:02:55]}  Nh5 {[%clk 0:01:49]} 14. Bh2 {[%clk 0:02:52]}  Ne5 {[%clk 0:01:44]} 15. Be2 {[%clk 0:02:50]}  Nf6 {[%clk 0:01:43]} 16. f4 {[%clk 0:02:49]}  Ned7 {[%clk 0:01:40]} 17. Bf3 {[%clk 0:02:40]}  Rb8 {[%clk 0:01:38]} 18. a5 {[%clk 0:02:32]}  b5 {[%clk 0:01:37]} 19. axb6 {[%clk 0:02:33]}  Rxb6 {[%clk 0:01:34]} 20. Nc4 {[%clk 0:02:32]}  Rb4 {[%clk 0:01:32]} 21. Qd3 {[%clk 0:02:23]}  Nb6 {[%clk 0:01:26]} 22. Na5 {[%clk 0:01:58]}  Rd4 {[%clk 0:01:12]} 23. Qc2 {[%clk 0:01:55]}  Nc4 {[%clk 0:01:12]} 24. Nxc4 {[%clk 0:01:54]}  Rxc4 {[%clk 0:01:12]} 25. e5 {[%clk 0:01:50]}  Nd7 {[%clk 0:00:59]} 26. e6 {[%clk 0:01:44]}  Bd4+ {[%clk 0:00:59]} 27. Kh1 {[%clk 0:01:43]}  Nf6 {[%clk 0:01:00]} 28. f5 {[%clk 0:01:41]}  Bb7 {[%clk 0:00:57]} 29. Qe2 {[%clk 0:01:24]}  Rb4 {[%clk 0:00:51]} 30. fxg6 {[%clk 0:01:23]}  fxg6 {[%clk 0:00:50]} 31. Ne4 {[%clk 0:01:18]}  Nxd5 {[%clk 0:00:48]} 32. Bg4 {[%clk 0:01:13]}  Be5 {[%clk 0:00:46]} 33. Rf7 {[%clk 0:01:09]}  Bxh2 {[%clk 0:00:43]} 34. Rxc7 {[%clk 0:01:07]}  Nxc7 {[%clk 0:00:41]} 35. Nf6+ {[%clk 0:01:07]}  Kf8 {[%clk 0:00:40]} 36. Nxe8 {[%clk 0:01:07]}  Kxe8 {[%clk 0:00:39]} 37. Kxh2 {[%clk 0:01:05]}  Re4 {[%clk 0:00:39]} 38. Qf3 {[%clk 0:01:04]}  d5 {[%clk 0:00:32]} 39. Qf7+ {[%clk 0:01:03]}  Kd8 {[%clk 0:00:31]} 40. Qd7# {[%clk 0:01:04]} 1-0


[Site "https://www.chess.com"]

[Event "Titled Tuesday Blitz May 16 Late 2023"]
[White "Ollier, Pablo"]
[Black "Simonian, Hrair"]
[WhiteFideId "652318"]
[BlackFideId "13302337"]
[WhiteElo "2502"]
[BlackElo "2447"]
[Result "0-1"]
[Round "06"]
[TimeControl "180+2"]
[Date "2023.05.16"]
[WhiteClock "0:00:00"]
[BlackClock "0:01:19"]

1. d4 {[%clk 0:03:00]}  Nf6 {[%clk 0:02:57]} 2. c4 {[%clk 0:02:59]}  e6 {[%clk 0:02:58]} 3. Nc3 {[%clk 0:02:59]}  Bb4 {[%clk 0:02:58]} 4. e3 {[%clk 0:03:00]}  O-O {[%clk 0:02:56]} 5. Bd3 {[%clk 0:03:00]}  d5 {[%clk 0:02:57]} 6. a3 {[%clk 0:03:00]}  Bxc3+ {[%clk 0:02:57]} 7. bxc3 {[%clk 0:03:01]}  c5 {[%clk 0:02:58]} 8. cxd5 {[%clk 0:03:01]}  exd5 {[%clk 0:02:57]} 9. Ne2 {[%clk 0:03:01]}  Nc6 {[%clk 0:02:55]} 10. O-O {[%clk 0:03:01]}  Bg4 {[%clk 0:02:54]} 11. f3 {[%clk 0:03:01]}  Bh5 {[%clk 0:02:48]} 12. Ng3 {[%clk 0:02:55]}  Bg6 {[%clk 0:02:47]} 13. Ra2 {[%clk 0:02:46]}  Re8 {[%clk 0:02:45]} 14. Re2 {[%clk 0:02:45]}  Qd7 {[%clk 0:02:27]} 15. Bb2 {[%clk 0:02:39]}  Rac8 {[%clk 0:02:24]} 16. Bxg6 {[%clk 0:02:17]}  hxg6 {[%clk 0:02:25]} 17. e4 {[%clk 0:02:16]}  dxe4 {[%clk 0:02:12]} 18. fxe4 {[%clk 0:02:16]}  Rcd8 {[%clk 0:01:39]} 19. d5 {[%clk 0:00:29]}  Ne5 {[%clk 0:01:37]} 20. Ref2 {[%clk 0:00:16]}  c4 {[%clk 0:01:34]} 21. Bc1 {[%clk 0:00:05]}  Nfg4 {[%clk 0:01:23]} 22. Rf4 {[%clk 0:00:02]}  f6 {[%clk 0:01:21]} 23. Bd2 {[%clk 0:00:01]}  g5 {[%clk 0:01:21]} 24. Rf5 {[%clk 0:00:00]}  Nh6 {[%clk 0:01:19]} 0-1


[Site "https://www.chess.com"]

[Event "Titled Tuesday Blitz May 16 Late 2023"]
[White "Petrovic, Aleksa"]
[Black "Fishbein, Mitch"]
[WhiteFideId "967629"]
[BlackFideId "30922917"]
[WhiteElo "2309"]
[BlackElo "1964"]
[Result "1-0"]
[Round "06"]
[TimeControl "180+2"]
[Date "2023.05.16"]
[WhiteClock "0:00:16"]
[BlackClock "0:00:03"]

1. d4 {[%clk 0:03:00]}  Nf6 {[%clk 0:02:59]} 2. c4 {[%clk 0:03:00]}  g6 {[%clk 0:02:59]} 3. f3 {[%clk 0:02:59]}  Bg7 {[%clk 0:02:58]} 4. e4 {[%clk 0:03:00]}  d6 {[%clk 0:02:59]} 5. Nc3 {[%clk 0:03:01]}  O-O {[%clk 0:02:59]} 6. Nge2 {[%clk 0:03:01]}  c5 {[%clk 0:02:54]} 7. d5 {[%clk 0:03:01]}  e6 {[%clk 0:02:54]} 8. Ng3 {[%clk 0:03:01]}  exd5 {[%clk 0:02:52]} 9. cxd5 {[%clk 0:03:01]}  h5 {[%clk 0:02:50]} 10. Bg5 {[%clk 0:03:00]}  a6 {[%clk 0:02:49]} 11. a4 {[%clk 0:02:59]}  Re8 {[%clk 0:02:47]} 12. Be2 {[%clk 0:02:59]}  Qb6 {[%clk 0:02:42]} 13. Qd2 {[%clk 0:02:59]}  Nh7 {[%clk 0:02:40]} 14. a5 {[%clk 0:02:58]}  Qc7 {[%clk 0:02:32]} 15. Bh6 {[%clk 0:02:57]}  h4 {[%clk 0:02:26]} 16. Bxg7 {[%clk 0:02:48]}  Kxg7 {[%clk 0:02:27]} 17. Nf1 {[%clk 0:02:48]}  Nd7 {[%clk 0:02:23]} 18. Ne3 {[%clk 0:02:47]}  b5 {[%clk 0:02:05]} 19. axb6 {[%clk 0:02:46]}  Nxb6 {[%clk 0:02:06]} 20. O-O {[%clk 0:02:44]}  Qe7 {[%clk 0:01:56]} 21. f4 {[%clk 0:02:36]}  f5 {[%clk 0:01:46]} 22. e5 {[%clk 0:02:08]}  dxe5 {[%clk 0:01:36]} 23. d6 {[%clk 0:02:08]}  Qe6 {[%clk 0:01:22]} 24. fxe5 {[%clk 0:02:00]}  Qxe5 {[%clk 0:01:20]} 25. Nc4 {[%clk 0:01:57]}  Nxc4 {[%clk 0:01:13]} 26. Bxc4 {[%clk 0:01:58]}  Qd4+ {[%clk 0:00:40]} 27. Qxd4+ {[%clk 0:01:57]}  cxd4 {[%clk 0:00:41]} 28. Nd5 {[%clk 0:01:51]}  Rd8 {[%clk 0:00:35]} 29. Nb6 {[%clk 0:01:34]}  Rb8 {[%clk 0:00:30]} 30. Nxc8 {[%clk 0:01:33]}  Rbxc8 {[%clk 0:00:30]} 31. Bxa6 {[%clk 0:01:28]}  Rb8 {[%clk 0:00:29]} 32. Rfd1 {[%clk 0:01:21]}  Rxd6 {[%clk 0:00:29]} 33. Bf1 {[%clk 0:01:20]}  Rxb2 {[%clk 0:00:27]} 34. Ra4 {[%clk 0:01:20]}  Nf6 {[%clk 0:00:19]} 35. Raxd4 {[%clk 0:01:20]}  Rxd4 {[%clk 0:00:20]} 36. Rxd4 {[%clk 0:01:20]}  Ne4 {[%clk 0:00:19]} 37. Rd7+ {[%clk 0:01:14]}  Kf6 {[%clk 0:00:20]} 38. Rd1 {[%clk 0:01:12]}  g5 {[%clk 0:00:20]} 39. Re1 {[%clk 0:01:09]}  g4 {[%clk 0:00:19]} 40. Bd3 {[%clk 0:01:08]}  Ng5 {[%clk 0:00:18]} 41. Rf1 {[%clk 0:01:07]}  Rd2 {[%clk 0:00:04]} 42. Bxf5 {[%clk 0:00:57]}  Kg7 {[%clk 0:00:04]} 43. Bxg4 {[%clk 0:00:56]}  Ne4 {[%clk 0:00:03]} 44. Bf3 {[%clk 0:00:55]}  Nf6 {[%clk 0:00:03]} 45. Ra1 {[%clk 0:00:51]}  Rd7 {[%clk 0:00:03]} 46. Ra4 {[%clk 0:00:51]}  h3 {[%clk 0:00:03]} 47. g3 {[%clk 0:00:47]}  Rd2 {[%clk 0:00:03]} 48. Rh4 {[%clk 0:00:47]}  Kg6 {[%clk 0:00:03]} 49. Rxh3 {[%clk 0:00:46]}  Kg5 {[%clk 0:00:04]} 50. Rh4 {[%clk 0:00:47]}  Nd7 {[%clk 0:00:04]} 51. Rf4 {[%clk 0:00:46]}  Ne5 {[%clk 0:00:05]} 52. h4+ {[%clk 0:00:44]}  Kg6 {[%clk 0:00:05]} 53. Be4+ {[%clk 0:00:36]}  Kg7 {[%clk 0:00:04]} 54. Rf2 {[%clk 0:00:35]}  Rd4 {[%clk 0:00:04]} 55. Re2 {[%clk 0:00:34]}  Ng4 {[%clk 0:00:04]} 56. Kg2 {[%clk 0:00:34]}  Nf6 {[%clk 0:00:05]} 57. Bf3 {[%clk 0:00:34]}  Rb4 {[%clk 0:00:05]} 58. Kh3 {[%clk 0:00:34]}  Nd7 {[%clk 0:00:05]} 59. g4 {[%clk 0:00:33]}  Kf6 {[%clk 0:00:05]} 60. g5+ {[%clk 0:00:33]}  Kf5 {[%clk 0:00:06]} 61. Rf2 {[%clk 0:00:27]}  Ne5 {[%clk 0:00:05]} 62. Bh5+ {[%clk 0:00:24]}  Ke6 {[%clk 0:00:04]} 63. Rf6+ {[%clk 0:00:24]}  Ke7 {[%clk 0:00:04]} 64. Rf5 {[%clk 0:00:20]}  Rb3+ {[%clk 0:00:05]} 65. Kh2 {[%clk 0:00:19]}  Rb2+ {[%clk 0:00:05]} 66. Kg3 {[%clk 0:00:20]}  Rb3+ {[%clk 0:00:06]} 67. Kf4 {[%clk 0:00:18]}  Nd3+ {[%clk 0:00:07]} 68. Ke4 {[%clk 0:00:18]}  Nf2+ {[%clk 0:00:07]} 69. Rxf2 {[%clk 0:00:18]}  Rb4+ {[%clk 0:00:08]} 70. Kf5 {[%clk 0:00:18]}  Rxh4 {[%clk 0:00:09]} 71. Re2+ {[%clk 0:00:18]}  Kf8 {[%clk 0:00:08]} 72. Re8+ {[%clk 0:00:18]}  Kg7 {[%clk 0:00:08]} 73. Bf3 {[%clk 0:00:17]}  Rh3 {[%clk 0:00:08]} 74. Bg4 {[%clk 0:00:16]}  Rh2 {[%clk 0:00:08]} 75. Re7+ {[%clk 0:00:16]}  Kf8 {[%clk 0:00:08]} 76. Ra7 {[%clk 0:00:16]}  Rf2+ {[%clk 0:00:09]} 77. Kg6 {[%clk 0:00:16]}  Rf1 {[%clk 0:00:10]} 78. Bf5 {[%clk 0:00:16]}  Ke8 {[%clk 0:00:08]} 79. Ra8+ {[%clk 0:00:16]}  Ke7 {[%clk 0:00:08]} 80. Rg8 {[%clk 0:00:16]}  Rf2 {[%clk 0:00:08]} 81. Rg7+ {[%clk 0:00:16]}  Kf8 {[%clk 0:00:09]} 82. Be6 {[%clk 0:00:16]}  Ke8 {[%clk 0:00:08]} 83. Rf7 {[%clk 0:00:16]}  Re2 {[%clk 0:00:05]} 84. Bd7+ {[%clk 0:00:15]}  Kd8 {[%clk 0:00:05]} 85. Bb5 {[%clk 0:00:15]}  Rd2 {[%clk 0:00:05]} 86. Rd7+ {[%clk 0:00:15]}  Rxd7 {[%clk 0:00:04]} 87. Bxd7 {[%clk 0:00:16]}  Kxd7 {[%clk 0:00:03]} 88. Kf7 {[%clk 0:00:16]} 1-0


[Site "https://www.chess.com"]

[Event "Titled Tuesday Blitz May 16 Late 2023"]
[White "Saveliev, Alexei"]
[Black "Wizard_of_Odds"]
[WhiteFideId "24128546"]
[WhiteElo "2271"]
[BlackElo "2456"]
[Result "1-0"]
[Round "06"]
[TimeControl "180+2"]
[Date "2023.05.16"]
[WhiteClock "0:00:06"]
[BlackClock "0:00:01"]

1. c4 {[%clk 0:03:00]}  b6 {[%clk 0:02:59]} 2. Nc3 {[%clk 0:03:00]}  Bb7 {[%clk 0:03:00]} 3. d4 {[%clk 0:03:00]}  e6 {[%clk 0:03:00]} 4. a3 {[%clk 0:03:01]}  Nf6 {[%clk 0:02:59]} 5. d5 {[%clk 0:03:00]}  Bd6 {[%clk 0:02:50]} 6. Nf3 {[%clk 0:02:58]}  O-O {[%clk 0:02:50]} 7. g3 {[%clk 0:02:50]}  c6 {[%clk 0:02:44]} 8. Bg5 {[%clk 0:02:33]}  cxd5 {[%clk 0:02:42]} 9. cxd5 {[%clk 0:02:33]}  h6 {[%clk 0:02:09]} 10. h4 {[%clk 0:02:16]}  Re8 {[%clk 0:01:58]} 11. Bg2 {[%clk 0:01:59]}  exd5 {[%clk 0:01:46]} 12. Qd3 {[%clk 0:01:23]}  Na6 {[%clk 0:01:34]} 13. Qf5 {[%clk 0:01:05]}  Be7 {[%clk 0:01:23]} 14. O-O-O {[%clk 0:00:39]}  Rc8 {[%clk 0:01:13]} 15. Kb1 {[%clk 0:00:38]}  g6 {[%clk 0:00:51]} 16. Qh3 {[%clk 0:00:20]}  Kg7 {[%clk 0:00:34]} 17. g4 {[%clk 0:00:15]}  d6 {[%clk 0:00:25]} 18. h5 {[%clk 0:00:10]}  Rh8 {[%clk 0:00:20]} 19. Be3 {[%clk 0:00:07]}  gxh5 {[%clk 0:00:09]} 20. gxh5 {[%clk 0:00:06]}  Qd7 {[%clk 0:00:07]} 21. Nd4 {[%clk 0:00:03]}  Qxh3 {[%clk 0:00:05]} 22. Bxh3 {[%clk 0:00:03]}  Rxc3 {[%clk 0:00:02]} 23. Rhg1+ {[%clk 0:00:04]}  Kf8 {[%clk 0:00:02]} 24. bxc3 {[%clk 0:00:05]}  Nc5 {[%clk 0:00:03]} 25. Nf5 {[%clk 0:00:05]}  Nce4 {[%clk 0:00:02]} 26. Bxh6+ {[%clk 0:00:04]}  Ke8 {[%clk 0:00:02]} 27. Kc2 {[%clk 0:00:04]}  Nxf2 {[%clk 0:00:03]} 28. Bg2 {[%clk 0:00:02]}  Nxd1 {[%clk 0:00:03]} 29. Kxd1 {[%clk 0:00:03]}  Bc8 {[%clk 0:00:03]} 30. Nxe7 {[%clk 0:00:03]}  Kxe7 {[%clk 0:00:04]} 31. Bg5 {[%clk 0:00:03]}  Rxh5 {[%clk 0:00:04]} 32. Bf3 {[%clk 0:00:04]}  Rh3 {[%clk 0:00:03]} 33. Rf1 {[%clk 0:00:04]}  Be6 {[%clk 0:00:02]} 34. Bg2 {[%clk 0:00:03]}  Rg3 {[%clk 0:00:01]} 35. Bxf6+ {[%clk 0:00:04]}  Kd7 {[%clk 0:00:02]} 36. Bf3 {[%clk 0:00:05]}  d4 {[%clk 0:00:03]} 37. cxd4 {[%clk 0:00:05]}  Bc4 {[%clk 0:00:03]} 38. Kd2 {[%clk 0:00:05]}  Rg6 {[%clk 0:00:03]} 39. Bh4 {[%clk 0:00:05]}  Re6 {[%clk 0:00:04]} 40. Bg4 {[%clk 0:00:05]}  f5 {[%clk 0:00:04]} 41. Bxf5 {[%clk 0:00:05]}  Kc6 {[%clk 0:00:05]} 42. Bxe6 {[%clk 0:00:05]}  Bxe6 {[%clk 0:00:06]} 43. e4 {[%clk 0:00:06]}  Bc4 {[%clk 0:00:06]} 44. Rc1 {[%clk 0:00:05]}  Kb5 {[%clk 0:00:06]} 45. Kc3 {[%clk 0:00:06]}  Be2 {[%clk 0:00:06]} 46. Be7 {[%clk 0:00:06]}  Bf3 {[%clk 0:00:06]} 47. Re1 {[%clk 0:00:05]}  Kc6 {[%clk 0:00:06]} 48. d5+ {[%clk 0:00:05]}  Kc5 {[%clk 0:00:06]} 49. Re3 {[%clk 0:00:05]}  Bg2 {[%clk 0:00:06]} 50. e5 {[%clk 0:00:05]}  Kxd5 {[%clk 0:00:06]} 51. Bxd6 {[%clk 0:00:06]}  Bh3 {[%clk 0:00:06]} 52. Rxh3 {[%clk 0:00:06]}  a5 {[%clk 0:00:05]} 53. a4 {[%clk 0:00:05]}  Kc6 {[%clk 0:00:05]} 54. Kc4 {[%clk 0:00:06]}  Kb7 {[%clk 0:00:05]} 55. Kb5 {[%clk 0:00:06]}  Ka7 {[%clk 0:00:06]} 56. Rh7+ {[%clk 0:00:05]}  Ka8 {[%clk 0:00:06]} 57. Rh6 {[%clk 0:00:05]}  Ka7 {[%clk 0:00:07]} 58. e6 {[%clk 0:00:05]}  Kb7 {[%clk 0:00:07]} 59. Rh7+ {[%clk 0:00:04]}  Ka8 {[%clk 0:00:06]} 60. Bc5 {[%clk 0:00:05]}  Kb8 {[%clk 0:00:04]} 61. Kc6 {[%clk 0:00:05]}  Ka8 {[%clk 0:00:03]} 62. Kxb6 {[%clk 0:00:05]}  Kb8 {[%clk 0:00:01]} 63. Rh8# {[%clk 0:00:06]} 1-0


[Site "https://www.chess.com"]

[Event "Titled Tuesday Blitz May 16 Late 2023"]
[White "Sai Han Thiha"]
[Black "Sargsyan, Anna M."]
[WhiteFideId "13012290"]
[BlackFideId "13308130"]
[WhiteElo "1954"]
[BlackElo "2284"]
[Result "0-1"]
[Round "06"]
[TimeControl "180+2"]
[Date "2023.05.16"]
[WhiteClock "0:00:00"]
[BlackClock "0:00:12"]

1. d4 {[%clk 0:03:00]}  d5 {[%clk 0:02:58]} 2. Nf3 {[%clk 0:03:01]}  Nf6 {[%clk 0:02:58]} 3. c3 {[%clk 0:03:02]}  Bf5 {[%clk 0:02:57]} 4. Qb3 {[%clk 0:03:02]}  Qc8 {[%clk 0:02:57]} 5. c4 {[%clk 0:03:02]}  dxc4 {[%clk 0:02:57]} 6. Qxc4 {[%clk 0:03:03]}  e6 {[%clk 0:02:57]} 7. Nc3 {[%clk 0:03:03]}  c6 {[%clk 0:02:57]} 8. Nh4 {[%clk 0:02:57]}  Bg6 {[%clk 0:02:54]} 9. Nxg6 {[%clk 0:01:57]}  hxg6 {[%clk 0:02:55]} 10. e4 {[%clk 0:01:58]}  Nbd7 {[%clk 0:02:55]} 11. f3 {[%clk 0:01:51]}  Be7 {[%clk 0:02:53]} 12. Be3 {[%clk 0:01:50]}  Qc7 {[%clk 0:02:37]} 13. e5 {[%clk 0:01:38]}  Nd5 {[%clk 0:02:34]} 14. Nxd5 {[%clk 0:01:36]}  exd5 {[%clk 0:02:33]} 15. Qb3 {[%clk 0:01:33]}  Bh4+ {[%clk 0:02:32]} 16. Kd2 {[%clk 0:01:22]}  O-O {[%clk 0:02:29]} 17. Bd3 {[%clk 0:01:21]}  Rae8 {[%clk 0:02:17]} 18. g3 {[%clk 0:01:17]}  Bd8 {[%clk 0:02:17]} 19. Rac1 {[%clk 0:01:13]}  g5 {[%clk 0:02:12]} 20. f4 {[%clk 0:01:10]}  f6 {[%clk 0:02:11]} 21. Rhf1 {[%clk 0:00:46]}  gxf4 {[%clk 0:01:57]} 22. gxf4 {[%clk 0:00:47]}  fxe5 {[%clk 0:01:57]} 23. fxe5 {[%clk 0:00:48]}  Rxf1 {[%clk 0:01:57]} 24. Rxf1 {[%clk 0:00:49]}  Nxe5 {[%clk 0:01:45]} 25. dxe5 {[%clk 0:00:48]}  Qxe5 {[%clk 0:01:46]} 26. Bf4 {[%clk 0:00:37]}  Qd4 {[%clk 0:01:28]} 27. Qc3 {[%clk 0:00:36]}  Qa4 {[%clk 0:01:24]} 28. Bd6 {[%clk 0:00:25]}  Ba5 {[%clk 0:01:16]} 29. b4 {[%clk 0:00:22]}  Qxa2+ {[%clk 0:01:12]} 30. Bc2 {[%clk 0:00:19]}  Bb6 {[%clk 0:01:06]} 31. Ra1 {[%clk 0:00:10]}  Qc4 {[%clk 0:00:54]} 32. Qxc4 {[%clk 0:00:10]}  dxc4 {[%clk 0:00:54]} 33. Bc5 {[%clk 0:00:11]}  Bc7 {[%clk 0:00:35]} 34. Rxa7 {[%clk 0:00:10]}  Bxh2 {[%clk 0:00:33]} 35. Rxb7 {[%clk 0:00:10]}  Be5 {[%clk 0:00:29]} 36. Bg6 {[%clk 0:00:07]}  Rd8+ {[%clk 0:00:27]} 37. Ke3 {[%clk 0:00:07]}  c3 {[%clk 0:00:21]} 38. Re7 {[%clk 0:00:05]}  Bf6 {[%clk 0:00:21]} 39. Re4 {[%clk 0:00:02]}  c2 {[%clk 0:00:19]} 40. Rc4 {[%clk 0:00:01]}  c1=Q+ {[%clk 0:00:18]} 41. Rxc1 {[%clk 0:00:01]}  Bg5+ {[%clk 0:00:19]} 42. Ke4 {[%clk 0:00:02]}  Bxc1 {[%clk 0:00:20]} 43. Be7 {[%clk 0:00:02]}  Rb8 {[%clk 0:00:15]} 44. Bd6 {[%clk 0:00:01]}  Rb5 {[%clk 0:00:12]} 45. Bc5 {[%clk 0:00:00]}  Ba3 {[%clk 0:00:12]} 0-1


[Site "https://www.chess.com"]

[Event "Titled Tuesday Blitz May 16 Late 2023"]
[White "Al-Tarboush, Ward"]
[Black "Pasti, Aron"]
[WhiteFideId "7601450"]
[BlackFideId "785857"]
[WhiteElo "2265"]
[BlackElo "2173"]
[Result "0-1"]
[Round "06"]
[TimeControl "180+2"]
[Date "2023.05.16"]
[WhiteClock "0:00:25"]
[BlackClock "0:00:57"]

1. Nc3 {[%clk 0:03:00]}  d5 {[%clk 0:02:59]} 2. d4 {[%clk 0:03:00]}  Nf6 {[%clk 0:02:59]} 3. Bg5 {[%clk 0:03:01]}  Ne4 {[%clk 0:02:48]} 4. Nxe4 {[%clk 0:02:58]}  dxe4 {[%clk 0:02:49]} 5. e3 {[%clk 0:02:57]}  c5 {[%clk 0:02:46]} 6. Bb5+ {[%clk 0:02:57]}  Bd7 {[%clk 0:02:46]} 7. Bxd7+ {[%clk 0:02:57]}  Nxd7 {[%clk 0:02:46]} 8. d5 {[%clk 0:02:55]}  Qb6 {[%clk 0:02:30]} 9. Rb1 {[%clk 0:02:53]}  O-O-O {[%clk 0:02:19]} 10. Ne2 {[%clk 0:02:52]}  h6 {[%clk 0:02:13]} 11. Bf4 {[%clk 0:02:51]}  Nf6 {[%clk 0:02:12]} 12. Nc3 {[%clk 0:02:42]}  e6 {[%clk 0:02:10]} 13. O-O {[%clk 0:02:34]}  exd5 {[%clk 0:02:08]} 14. Be5 {[%clk 0:02:34]}  Qe6 {[%clk 0:02:04]} 15. Bxf6 {[%clk 0:02:20]}  gxf6 {[%clk 0:02:05]} 16. Qh5 {[%clk 0:02:17]}  f5 {[%clk 0:01:54]} 17. Ne2 {[%clk 0:02:13]}  Bd6 {[%clk 0:01:52]} 18. g3 {[%clk 0:02:12]}  Rdg8 {[%clk 0:01:51]} 19. Rfd1 {[%clk 0:02:10]}  Rg5 {[%clk 0:01:49]} 20. Qh3 {[%clk 0:02:08]}  h5 {[%clk 0:01:46]} 21. b3 {[%clk 0:01:43]}  h4 {[%clk 0:01:44]} 22. c4 {[%clk 0:01:42]}  Qf6 {[%clk 0:01:39]} 23. Rxd5 {[%clk 0:01:21]}  hxg3 {[%clk 0:01:38]} 24. Rxd6 {[%clk 0:01:20]}  gxf2+ {[%clk 0:00:54]} 25. Kh1 {[%clk 0:00:58]}  Qg7 {[%clk 0:00:53]} 26. Qf1 {[%clk 0:00:56]}  Rxh2+ {[%clk 0:00:53]} 27. Kxh2 {[%clk 0:00:51]}  Rh5+ {[%clk 0:00:54]} 28. Qh3 {[%clk 0:00:51]}  Rxh3+ {[%clk 0:00:55]} 29. Kxh3 {[%clk 0:00:51]}  Qg4+ {[%clk 0:00:56]} 30. Kh2 {[%clk 0:00:25]}  Qxe2 {[%clk 0:00:57]} 0-1


[Site "https://www.chess.com"]